bitfinex/quotes_ETHUSD_20241019
["timestamp","ask_amount","ask_price","bid_price","bid_amount"]
[1729326362604,3.31,2643.9,2643.6,3.78271]
[1729326364832,3.31,2643.9,2643.4,8.9434397]
[1729326365039,3.31,2643.9,2643.5,3.78282]
[1729326367334,3.31,2643.9,2643.4,5.1605697]
[1729326367535,3.31,2643.9,2643.6,3.78271]
[1729326369512,3.31,2643.9,2643.4,5.1605697]
[1729326369719,3.31,2643.9,2643.5,3.78286]
[1729326370046,3.31,2643.9,2643.4,5.1605697]
[1729326370251,3.31,2643.9,2643.5,4.29891697]
[1729326371138,3.31,2643.9,2643.6,3.78264]
[1729326372743,3.31,2643.9,2643.6,3.78269]
[1729326377643,3.31,2643.9,2643.6,3.78264]
[1729326378560,3.31,2643.9,2643.6,3.78262]
[1729326381137,3.31,2643.9,2643.4,4.61571]
[1729326381471,3.31,2643.9,2643.5,3.78284]
[1729326381774,3.31,2643.9,2643.6,3.7827]
[1729326386849,3.31,2643.9,2643.6,7.56533]
[1729326387035,3.31,2643.9,2643.6,3.78263]
[1729326387237,3.31,2643.9,2643.7,3.78256]
[1729326388233,3.31,2643.9,2643.6,3.78263]
[1729326388234,3.31,2643.9,2643.6,7.56526]
[1729326389140,3.31,2643.9,2643.6,3.78263]
[1729326389474,4.89604608,2643.9,2643.6,7.56526]
[1729326390885,4.89604608,2643.9,2643.6,3.78263]
[1729326391681,1.58604608,2643.8,2643.6,3.78263]
[1729326394599,1.58604608,2643.7,2643.6,3.78263]
[1729326394894,1.58604608,2643.7,2643.6,4.06557868]
[1729326395103,1.58604608,2643.7,2643.6,0.28294868]
[1729326395305,1.58604608,2643.7,2643.4,4.61573]
[1729326395306,1.58604608,2643.7,2643.4,4.61572]
[1729326395598,1.58604608,2643.7,2643.5,0.28295824]
[1729326395804,1.58604608,2643.7,2643.4,8.39863]
[1729326396110,1.58604608,2643.7,2643.5,0.28295951]
[1729326396402,1.58604608,2643.7,2643.6,0.28295138]
[1729326396615,1.58604608,2643.7,2643.4,8.39863]
[1729326396760,1.58604608,2643.7,2643.5,0.2829574]
[1729326396964,1.58604608,2643.7,2643.4,4.61571]
[1729326397356,1.58604608,2643.7,2643.5,0.28296187]
[1729326397562,1.58604608,2643.7,2643.5,0.5659354]
[1729326399600,1.58604608,2643.6,2643.5,0.5659354]
[1729326399806,1.58604608,2643.6,2643.5,0.84890593]
[1729326399981,1.58604608,2643.7,2643.5,0.84890593]
[1729326400182,1.58604608,2643.7,2643.5,4.3487754]
[1729326402186,1.58604608,2643.7,2643.5,0.5659354]
[1729326403606,1.58604608,2643.7,2643.5,4.3487654]
[1729326404005,1.58604608,2643.7,2643.5,0.5659354]
[1729326406109,1.58604608,2643.7,2643.5,4.3487654]
[1729326407313,1.58604608,2643.7,2643.5,3.78283]
[1729326416025,1.58604608,2643.7,2643.4,4.61577]
[1729326416228,1.58604608,2643.7,2643.5,4.06578184]
[1729326416427,1.58604608,2643.7,2643.5,3.78285]
[1729326418123,1.58604608,2643.7,2643.4,4.6158]
[1729326418337,1.58604608,2643.7,2643.5,0.28294118]
[1729326418622,1.58604608,2643.7,2643.4,4.6158]
[1729326418824,1.58604608,2643.7,2643.5,0.28292105]
[1729326419034,1.58604608,2643.7,2643.5,3.78285]
[1729326424561,1.58604608,2643.7,2643.5,7.56562]
[1729326425148,1.58604608,2643.7,2643.5,3.78277]
[1729326430561,1.58604608,2643.7,2643.5,7.56556]
[1729326431846,1.58604608,2643.7,2643.5,3.78277]
[1729326432186,1.58604608,2643.7,2643.6,3.78272]
[1729326435125,1.58604608,2643.7,2643.5,3.78277]
[1729326435833,1.58604608,2643.7,2643.5,7.56556]
[1729326436128,1.58604608,2643.7,2643.5,3.78277]
[1729326437791,1.58604608,2643.7,2643.5,7.56553]
[1729326438136,1.58604608,2643.7,2643.6,0.8242]
[1729326438493,1.58604608,2643.7,2643.6,1.10707455]
[1729326439797,1.58604608,2643.7,2643.6,0.8242]
[1729326441252,1.58604608,2643.7,2643.4,4.60719]
[1729326441607,1.58604608,2643.7,2643.5,0.28284941]
[1729326441952,1.58604608,2643.7,2643.5,3.78284]
[1729326442947,1.58604608,2643.7,2643.6,0.28283428]
[1729326443119,1.58604608,2643.7,2643.5,3.78284]
[1729326443527,1.58604608,2643.7,2643.5,3.78278]
[1729326443709,1.58604608,2643.7,2643.6,1.10703564]
[1729326444045,1.58604608,2643.7,2643.6,0.8242]
[1729326444255,1.58604608,2643.7,2643.6,1.10703322]
[1729326445040,1.58604608,2643.7,2643.6,0.8242]
[1729326445240,1.58604608,2643.7,2643.6,4.60692]
[1729326445445,1.58604608,2643.7,2643.6,5.44589]
[1729326445667,1.58604608,2643.7,2643.6,5.72871455]
[1729326447109,1.58604608,2643.8,2643.6,5.72871455]
[1729326447324,1.58604608,2643.8,2643.7,3.78257]
[1729326448249,1.58604608,2643.8,2643.6,9.22851]
[1729326448420,1.19109661,2643.7,2643.6,5.44579]
[1729326448623,1.19109661,2643.7,2643.6,5.72853644]
[1729326449153,1.19109661,2643.7,2643.6,5.72852981]
[1729326452726,1.19109661,2643.7,2643.6,5.44579]
[1729326453145,1.19109661,2643.8,2643.6,5.72843649]
[1729326453353,1.19109661,2643.8,2643.7,4.35541365]
[1729326462171,4.50109661,2643.9,2643.8,3.78243]
[1729326465165,4.50109661,2643.9,2643.8,4.58743]
[1729326466163,1.19109661,2644.0,2643.8,3.78243]
[1729326466347,1.19109661,2644.0,2643.9,5.02281737]
[1729326468156,1.19109661,2644.1,2643.9,5.02281737]
[1729326468359,1.19109661,2644.1,2644.0,3.78214]
[1729326468694,1.58604608,2644.2,2644.0,3.78214]
[1729326468695,1.19109661,2644.2,2644.0,3.78214]
[1729326468897,1.19109661,2644.2,2644.1,3.782]
[1729326469797,1.19109661,2644.3,2644.1,3.782]
[1729326470193,1.19109661,2644.3,2644.1,8.36882]
[1729326470485,1.19109661,2644.3,2644.1,4.5869]
[1729326471051,1.19109661,2644.3,2644.2,3.78186]
[1729326472209,1.19109661,2644.4,2644.1,4.5869]
[1729326472428,1.19109661,2644.3,2644.1,4.5869]
[1729326472717,1.19109661,2644.3,2644.1,5.46736274]
[1729326473418,1.19109661,2644.4,2644.1,5.46736274]
[1729326473717,1.19109661,2644.3,2644.1,5.46736274]
[1729326474277,1.19109661,2644.4,2644.1,5.46736274]
[1729326475018,1.58604608,2644.5,2644.1,5.46736274]
[1729326475019,1.19109661,2644.3,2644.1,5.46736274]
[1729326475384,1.19109661,2644.4,2644.1,5.46736274]
[1729326475584,1.19109661,2644.3,2644.1,5.46736274]
[1729326476582,1.19109661,2644.4,2644.1,5.46736274]
[1729326476815,1.19109661,2644.3,2644.1,5.46736274]
[1729326477334,1.19109661,2644.4,2644.1,5.46736274]
[1729326478495,1.19109661,2644.4,2644.1,4.5869]
[1729326485450,1.19109661,2644.5,2644.1,4.5869]
[1729326487570,1.19109661,2644.5,2643.9,4.97707737]
[1729326487771,4.97266661,2644.4,2643.9,4.54155]
[1729326487981,4.97280661,2644.3,2643.9,0.7593]
[1729326489111,1.19109661,2644.4,2644.2,0.7593]
[1729326489273,1.19109661,2644.7,2644.4,0.7593]
[1729326489471,3.31,2644.8,2644.4,0.7593]
[1729326489472,4.50109661,2644.8,2644.4,0.7593]
[1729326491105,4.50109661,2644.8,2644.4,4.54085]
[1729326495418,4.50109661,2644.8,2644.5,3.78142]
[1729326496077,3.31,2644.8,2644.5,3.78142]
[1729326507151,7.5616,2645.0,2644.7,0.7705]
[1729326507152,1.19109661,2645.0,2644.7,0.7705]
[1729326507304,1.19109661,2645.0,2644.7,8.33269]
[1729326507647,1.19109661,2645.1,2644.7,4.55156]
[1729326507848,4.97152661,2645.2,2644.7,8.33263]
[1729326508145,1.19109661,2645.1,2644.7,8.98270247]
[1729326508734,1.19109661,2645.1,2644.8,3.78096]
[1729326509121,1.19109661,2645.1,2644.9,0.7705]
[1729326509747,1.19109661,2645.2,2644.9,0.7705]
[1729326515677,1.19109661,2645.2,2645.0,0.7526]
[1729326515881,1.19109661,2645.2,2644.7,0.65007247]
[1729326515882,0.022464,2645.5,2645.3,0.7526]
[1729326516404,0.022464,2645.5,2645.3,4.53288]
[1729326516727,0.022464,2645.5,2645.3,5.37177689]
[1729326519282,0.022464,2645.5,2645.3,1.59149689]
[1729326520401,0.022464,2645.5,2645.3,5.37177689]
[1729326526944,3.78022,2645.4,2644.9,4.53345]
[1729326527146,3.78022,2645.4,2644.9,0.7526]
[1729326527509,7.56049,2645.4,2644.9,0.7526]
[1729326527743,3.78022,2645.4,2644.9,0.7526]
[1729326527946,3.7803,2645.3,2644.9,0.7526]
[1729326528150,3.7803,2645.3,2644.9,1.20595]
[1729326528355,3.7803,2645.3,2644.9,0.7526]
[1729326529979,4.99361061,2645.5,2644.9,0.7526]
[1729326530187,3.78015,2645.4,2644.9,4.5334]
[1729326533971,4.97124661,2645.4,2644.9,4.5334]
[1729326534370,3.78015,2645.4,2644.9,4.5334]
[1729326534572,4.97124661,2645.4,2644.9,4.5334]
[1729326536798,3.7803,2645.3,2644.9,0.7526]
[1729326538391,3.78043,2645.2,2644.8,3.7809]
[1729326539866,4.81636567,2645.3,2644.8,3.7809]
[1729326541401,1.19109661,2645.4,2644.3,9.09082598]
[1729326541699,0.022464,2645.5,2644.8,3.781]
[1729326541903,0.022464,2645.5,2645.3,0.776]
[1729326543677,0.022464,2645.5,2645.3,4.55628]
[1729326544001,0.022464,2645.5,2645.4,3.78014]
[1729326547694,0.022464,2645.5,2645.1,3.78049]
[1729326547915,1.21356061,2645.5,2645.1,4.158539]
[1729326548119,0.022464,2645.5,2645.1,3.78049]
[1729326548327,1.21356061,2645.5,2645.1,3.78049]
[1729326549621,1.21356061,2645.5,2645.1,7.56098]
[1729326549820,1.21356061,2645.5,2645.1,3.78049]
[1729326550022,1.21356061,2645.5,2645.2,4.934409]
[1729326550223,1.21356061,2645.5,2645.3,3.78026]
[1729326550431,0.022464,2645.5,2645.3,3.78014]
[1729326550736,0.022464,2645.5,2645.4,3.78014]
[1729326558021,0.022464,2645.5,2645.4,4.59624]
[1729326558232,0.022464,2645.5,2645.4,5.4716829]
[1729326560524,0.022464,2645.5,2645.4,9.37889657]
[1729326560708,0.022464,2645.5,2645.4,9.75389337]
[1729326561509,2.2e-07,2645.5,2645.4,9.75389337]
[1729326565505,2.2e-07,2645.5,2645.4,9.0216829]
[1729326565918,2.2e-07,2645.5,2645.4,9.75248183]
[1729326566120,2.2e-07,2645.5,2645.4,9.30275941]
[1729326569434,2.2e-07,2645.5,2645.4,9.30251974]
[1729326580193,2.2e-07,2645.5,2645.4,9.0216829]
[1729326581181,2.2e-07,2645.5,2645.4,9.30231081]
[1729326581761,2.2e-07,2645.5,2645.4,9.3023283]
[1729326582071,2.2e-07,2645.5,2645.4,9.30233627]
[1729326582554,2.2e-07,2645.5,2645.4,11.12367799]
[1729326582752,2.2e-07,2645.5,2645.4,9.30233627]
[1729326585537,2.2e-07,2645.5,2645.4,9.30239927]
[1729326585716,2.2e-07,2645.5,2645.4,9.0216829]
[1729326585907,2.2e-07,2645.5,2645.4,9.30243861]
[1729326588921,2.2e-07,2645.5,2645.4,9.30247045]
[1729326592554,2.2e-07,2645.5,2645.4,9.0216829]
[1729326593052,2.2e-07,2645.5,2645.4,9.30253513]
[1729326593210,2.2e-07,2645.5,2645.4,9.75193461]
[1729326596357,2.2e-07,2645.5,2645.4,9.0216829]
[1729326597062,2.2e-07,2645.5,2645.4,9.7523458]
[1729326600249,2.2e-07,2645.5,2645.4,9.75273164]
[1729326603671,2.2e-07,2645.5,2645.4,10.94101727]
[1729326605457,2.2e-07,2645.5,2645.4,10.12491727]
[1729326606433,2.2e-07,2645.5,2645.4,10.52101249]
[1729326606945,2.2e-07,2645.5,2645.4,9.78996375]
[1729326607150,2.2e-07,2645.5,2645.4,10.52279136]
[1729326608395,2.2e-07,2645.5,2645.4,11.33069136]
[1729326608695,2.2e-07,2645.5,2645.4,11.33071983]
[1729326609854,2.2e-07,2645.5,2645.4,10.52281983]
[1729326610247,2.2e-07,2645.5,2645.4,9.78996375]
[1729326610453,2.2e-07,2645.5,2645.4,8.9385209]
[1729326610871,2.2e-07,2645.5,2645.4,10.52290175]
[1729326611667,2.2e-07,2645.5,2645.4,11.33080175]
[1729326613963,2.2e-07,2645.5,2645.4,11.33075721]
[1729326617487,2.2e-07,2645.5,2645.4,10.59786375]
[1729326617687,2.2e-07,2645.5,2645.4,11.33074856]
[1729326618100,2.2e-07,2645.5,2645.4,10.59786375]
[1729326618396,2.2e-07,2645.5,2645.4,11.33076358]
[1729326620419,2.2e-07,2645.5,2645.4,9.57266946]
[1729326622251,2.2e-07,2645.5,2645.4,7.51303983]
[1729326622455,2.2e-07,2645.5,2645.4,4.51303983]
[1729326623758,1.05464399,2645.8,2645.4,8.29317983]
[1729326623960,1.58604608,2645.8,2645.5,4.06187455]
[1729326624180,1.58604608,2645.9,2645.5,3.77999]
[1729326625601,1.58604608,2645.9,2645.6,3.77985]
[1729326626411,1.58604608,2646.0,2645.6,3.77985]
[1729326626712,1.58604608,2645.9,2645.6,3.77985]
[1729326628084,1.58604608,2646.0,2645.6,3.77985]
[1729326630517,1.58604608,2646.1,2645.7,3.77963]
[1729326631084,1.58604608,2646.1,2645.7,3.7797]
[1729326633023,1.18777832,2646.0,2645.7,3.7797]
[1729326633226,1.18777832,2645.9,2645.7,3.7797]
[1729326633821,1.18777832,2646.0,2645.7,3.7797]
[1729326635323,1.18777832,2645.9,2645.7,3.7797]
[1729326635497,1.18777832,2646.0,2645.7,3.7797]
[1729326635907,1.18777832,2645.9,2645.6,3.77986]
[1729326636106,1.18777832,2646.0,2645.6,3.77986]
[1729326636306,1.18777832,2645.9,2645.6,3.77986]
[1729326636824,1.18777832,2646.0,2645.6,3.77986]
[1729326637000,1.18777832,2646.0,2645.7,3.77963]
[1729326648840,1.18777832,2646.1,2645.9,3.77943]
[1729326650864,1.18777832,2646.1,2645.8,3.77955]
[1729326651214,1.18777832,2646.1,2645.7,3.77963]
[1729326651415,1.18777832,2646.0,2645.7,3.77963]
[1729326652836,1.18777832,2646.0,2645.5,3.77991]
[1729326652837,1.18777832,2646.0,2645.5,7.55982]
[1729326653037,1.18777832,2645.9,2645.5,7.55982]
[1729326653461,1.18777832,2645.9,2645.5,3.77991]
[1729326653631,1.18777832,2645.9,2645.6,3.77985]
[1729326654347,1.18777832,2645.9,2645.5,3.77991]
[1729326654661,1.18777832,2646.0,2645.7,3.7797]
[1729326655021,1.18777832,2645.9,2645.7,3.7797]
[1729326655222,1.18777832,2645.9,2645.6,3.77985]
[1729326656567,1.18777832,2645.9,2645.5,3.77991]
[1729326658270,1.18777832,2645.8,2645.5,3.77991]
[1729326660556,1.18777832,2645.8,2645.6,3.77975]
[1729326660731,1.58604608,2645.9,2645.6,3.77975]
[1729326660732,1.18777832,2645.9,2645.6,3.77975]
[1729326660932,1.18777832,2645.8,2645.6,3.77975]
[1729326662166,1.58604608,2645.9,2645.7,3.77971]
[1729326662167,1.18777832,2645.9,2645.7,3.77971]
[1729326663337,1.18777832,2645.9,2645.6,7.55953]
[1729326664283,1.18777832,2645.8,2645.6,7.55953]
[1729326664491,1.18777832,2645.8,2645.6,3.77975]
[1729326664648,1.18777832,2645.8,2645.7,3.77971]
[1729326665009,1.18777832,2645.8,2645.6,3.77975]
[1729326665148,1.18777832,2645.8,2645.6,7.55954]
[1729326665349,1.18777832,2645.8,2645.7,3.77971]
[1729326665573,1.18777832,2645.9,2645.7,3.77961]
[1729326665879,1.18777832,2645.9,2645.8,3.77957]
[1729326667159,1.98075626,2646.0,2645.8,3.77957]
[1729326668088,1.58604608,2645.9,2645.6,3.77975]
[1729326668288,1.18992554,2645.8,2645.7,0.28197022]
[1729326668522,1.18992554,2645.8,2645.7,4.06167022]
[1729326668824,1.18994332,2645.8,2645.7,4.06167761]
[1729326668976,1.18994332,2645.8,2645.7,3.7797]
[1729326669397,1.58604608,2645.9,2645.7,3.7797]
[1729326669982,1.18996368,2645.8,2645.7,3.7797]
[1729326670712,1.18996368,2645.8,2645.7,4.06167501]
[1729326671189,1.18996368,2645.8,2645.7,3.7797]
[1729326671589,1.18996368,2645.8,2645.7,4.06167894]
[1729326671825,1.18996368,2645.8,2645.7,4.34365751]
[1729326672632,1.18996368,2645.8,2645.7,4.06167857]
[1729326674789,1.18996368,2645.8,2645.7,3.7797]
[1729326674994,1.18996368,2645.8,2645.7,4.06167709]
[1729326675221,1.58604608,2645.9,2645.7,3.7797]
[1729326675764,1.18998126,2645.8,2645.7,3.7797]
[1729326675921,1.18998126,2645.8,2645.7,4.06168585]
[1729326676119,1.58604608,2645.9,2645.8,3.77957]
[1729326678262,1.58604608,2645.9,2645.6,3.77972]
[1729326678569,1.18995851,2645.8,2645.5,4.58289]
[1729326678733,1.58604608,2645.9,2645.7,3.77971]
[1729326679144,1.1899773,2645.8,2645.7,3.77971]
[1729326679343,1.58604608,2645.9,2645.7,7.55942]
[1729326679739,1.18998312,2645.8,2645.7,3.77971]
[1729326679939,1.58604608,2645.9,2645.7,3.77971]
[1729326680135,1.18998248,2645.8,2645.7,3.77971]
[1729326680372,1.58604608,2645.9,2645.7,3.77971]
[1729326680522,1.18998107,2645.8,2645.7,3.77971]
[1729326680930,1.18998107,2645.8,2645.5,3.77988]
[1729326681230,1.18999109,2645.7,2645.6,4.06176869]
[1729326681744,1.18999109,2645.7,2645.6,0.28198869]
[1729326681958,1.58604608,2645.8,2645.6,3.77986]
[1729326682155,1.58604608,2645.7,2645.5,7.55974]
[1729326682471,1.19004029,2645.6,2645.5,3.77986]
[1729326682697,1.19004029,2645.7,2645.6,3.77986]
[1729326682879,1.1900144,2645.7,2645.6,3.77986]
[1729326683081,1.58604608,2645.8,2645.6,3.77986]
[1729326683477,1.18998651,2645.7,2645.6,3.77986]
[1729326683871,1.18998714,2645.7,2645.6,3.77986]
[1729326684277,1.18997848,2645.7,2645.4,3.78013]
[1729326684601,1.18997848,2645.6,2645.5,4.0619297]
[1729326685603,1.18997848,2645.7,2645.5,4.0619297]
[1729326685808,1.18997848,2645.6,2645.5,3.77992]
[1729326685966,1.18997848,2645.7,2645.5,3.77992]
[1729326686584,1.18997848,2645.7,2645.6,3.77986]
[1729326686962,1.18997848,2645.7,2645.5,3.77992]
[1729326687192,1.18997848,2645.6,2645.5,3.77992]
[1729326687498,1.18997848,2645.6,2645.5,4.06193181]
[1729326689463,1.18997848,2645.6,2645.5,3.77992]
[1729326689903,1.18997848,2645.7,2645.5,4.06191704]
[1729326690217,1.18997848,2645.7,2645.5,3.77992]
[1729326690912,1.18997848,2645.7,2645.6,3.77986]
[1729326692337,1.18997848,2645.7,2645.5,3.77999]
[1729326692494,1.18977814,2645.7,2645.5,3.77999]
[1729326692891,1.18977814,2645.7,2645.5,7.55992]
[1729326693088,1.18977814,2645.7,2645.3,0.7768]
[1729326693323,1.18977814,2645.7,2644.7,1.97392618]
[1729326693324,1.18989254,2645.4,2645.0,0.45119454]
[1729326693506,1.19001317,2645.3,2644.9,3.78074]
[1729326693704,1.19001317,2645.3,2644.9,7.56152]
[1729326693947,1.19001317,2645.2,2644.9,7.56152]
[1729326694146,1.19001317,2645.1,2645.0,0.28205074]
[1729326694445,1.19001317,2645.1,2644.7,0.7768]
[1729326694653,1.19001317,2645.1,2644.7,5.013717]
[1729326695515,1.19001317,2645.2,2644.7,4.55792]
[1729326695712,1.19001317,2645.2,2644.8,3.78097]
[1729326696047,1.19001317,2645.2,2644.9,3.78085]
[1729326696415,1.19001317,2645.3,2644.9,3.78085]
[1729326698840,1.19001317,2645.3,2645.0,3.78071]
[1729326699050,1.19001317,2645.4,2645.2,3.78036]
[1729326701464,1.19001317,2645.5,2645.2,3.78036]
[1729326701739,1.19001317,2645.5,2645.0,3.78071]
[1729326702037,1.19001317,2645.4,2645.0,3.78071]
[1729326702448,1.19001317,2645.4,2645.0,7.56135]
[1729326702748,1.19001317,2645.4,2645.0,3.78064]
[1729326702935,1.19001317,2645.4,2645.0,7.56127]
[1729326703240,5.36599608,2645.6,2645.0,7.56127]
[1729326703241,1.19001317,2645.5,2645.0,7.56127]
[1729326705239,1.19001317,2645.5,2645.0,3.78063]
[1729326705454,1.19001317,2645.5,2645.1,3.78056]
[1729326706427,1.19001317,2645.5,2645.0,7.56125]
[1729326706837,1.19001317,2645.5,2645.0,7.56126]
[1729326707138,1.19001317,2645.5,2645.0,3.78062]
[1729326707450,3.78036,2645.3,2644.8,3.78089]
[1729326707755,3.78036,2645.3,2644.6,3.7812]
[1729326707756,3.7805,2645.2,2644.6,7.56241]
[1729326708309,3.7805,2645.2,2644.6,7.5624]
[1729326708512,3.78059,2645.1,2644.6,3.7812]
[1729326709624,4.81429093,2645.1,2644.6,3.7812]
[1729326712553,4.81429093,2645.1,2644.5,3.78141]
[1729326712554,3.73409508,2645.0,2644.5,3.78141]
[1729326712742,3.73409508,2645.0,2644.4,5.67161315]
[1729326713130,3.73409508,2645.0,2644.5,3.78142]
[1729326719243,4.32573814,2645.0,2644.5,3.78142]
[1729326719444,5.35874236,2645.0,2644.5,3.78142]
[1729326721792,5.35874236,2645.0,2644.3,4.61356]
[1729326721793,0.59164306,2645.0,2644.8,0.7584]
[1729326721997,0.59164306,2645.0,2644.9,3.78086]
[1729326722298,5.36594608,2645.6,2645.1,3.78046]
[1729326722299,5.56149082,2645.6,2645.1,3.78046]
[1729326722491,1.68429634,2645.6,2645.0,3.78062]
[1729326722646,1.68429634,2645.6,2645.2,4.5388]
[1729326724350,0.59157765,2645.6,2645.2,4.5388]
[1729326725343,0.59157765,2645.6,2645.3,3.78027]
[1729326725547,0.59157765,2645.6,2645.2,4.5388]
[1729326725548,0.59157765,2645.6,2645.2,4.53875]
[1729326725786,0.59157765,2645.6,2645.3,3.7802]
[1729326725987,0.59157765,2645.6,2645.4,3.78014]
[1729326726350,1.19001317,2645.8,2645.4,3.78014]
[1729326729870,1.19001317,2645.7,2645.4,3.78013]
[1729326730063,1.19001317,2645.8,2645.4,3.78013]
[1729326731355,1.19001317,2645.7,2645.4,3.78013]
[1729326731650,4.96958317,2645.8,2645.4,3.78013]
[1729326732453,1.19001317,2645.8,2645.4,3.78013]
[1729326733267,4.96958317,2645.8,2645.4,3.78013]
[1729326734190,4.96958317,2645.8,2645.3,3.78025]
[1729326734398,1.19001317,2645.7,2645.3,3.78025]
[1729326739005,1.19001317,2645.6,2645.3,3.78025]
[1729326739501,1.19001317,2645.6,2645.2,0.7584]
[1729326739806,1.19001317,2645.6,2645.2,4.53876]
[1729326740414,1.19001317,2645.6,2645.3,3.78018]
[1729326740910,1.19001317,2645.7,2645.3,3.78018]
[1729326741690,1.19001317,2645.7,2645.2,1.212276]
[1729326741874,1.19001317,2645.7,2645.4,3.78009]
[1729326743211,1.19001317,2645.8,2645.4,3.78009]
[1729326743416,1.19001317,2645.8,2645.3,3.7802]
[1729326743613,1.19001317,2645.7,2645.3,3.7802]
[1729326744410,1.19001317,2645.7,2645.4,3.78013]
[1729326744919,1.19001317,2645.8,2645.4,3.78013]
[1729326745380,1.19001317,2645.8,2645.3,3.78019]
[1729326745573,1.19001317,2645.8,2645.4,3.78012]
[1729326748527,1.19001317,2645.8,2645.2,0.7584]
[1729326748528,1.19001317,2645.8,2645.6,3.77971]
[1729326748832,1.19001317,2645.9,2645.6,8.37059]
[1729326749009,1.19001317,2646.0,2645.6,4.59081]
[1729326749219,1.19001317,2645.9,2645.6,4.59081]
[1729326749728,1.19001317,2646.0,2645.6,8.37058]
[1729326750023,1.19001317,2646.0,2645.6,4.59081]
[1729326750925,5.36520608,2646.1,2645.6,1.648188]
[1729326750926,1.19001317,2646.1,2645.6,1.648188]
[1729326751088,1.19001317,2646.2,2645.9,3.7794]
[1729326752238,1.19001317,2646.3,2645.9,3.7794]
[1729326756371,1.19001317,2646.3,2645.9,3.77934]
[1729326756677,5.56016924,2646.4,2645.9,3.77934]
[1729326756970,1.19001317,2646.3,2645.9,4.55104]
[1729326757123,5.56016924,2646.4,2645.9,5.384106]
[1729326757789,1.19001317,2646.3,2645.9,5.384106]
[1729326757962,5.56016924,2646.4,2645.9,5.384106]
[1729326758770,1.19001317,2646.3,2645.9,5.384106]
[1729326758928,5.56016924,2646.4,2645.9,5.384106]
[1729326759125,1.19001317,2646.3,2645.9,5.384106]
[1729326762236,1.19001317,2646.3,2645.9,9.163446]
[1729326762443,1.19001317,2646.3,2646.0,0.9163446]
[1729326762776,1.19001317,2646.3,2645.9,4.55104]
[1729326764557,1.19001317,2646.2,2645.9,4.55104]
[1729326764756,1.19001317,2646.2,2645.9,0.7717]
[1729326766766,1.58471102,2646.2,2645.9,0.7717]
[1729326768165,1.19001317,2646.1,2645.9,0.7717]
[1729326768385,1.58471102,2646.2,2645.9,4.55112]
[1729326768791,1.19001317,2646.1,2645.9,4.55112]
[1729326775093,1.58471102,2646.2,2645.9,4.55112]
[1729326779865,1.58471102,2646.2,2645.9,0.7717]
[1729326780067,1.19001317,2646.1,2645.9,0.7717]
[1729326780266,1.19001317,2646.1,2645.9,4.5511]
[1729326780590,1.58471102,2646.2,2645.9,4.5511]
[1729326781197,1.19001317,2646.1,2645.9,0.7717]
[1729326781411,1.19001317,2646.1,2645.9,4.55111]
[1729326781863,1.19001317,2646.1,2645.9,0.7717]
[1729326784306,1.19001317,2646.1,2645.9,4.5511]
[1729326784468,1.19001317,2646.1,2645.9,0.7717]
[1729326785387,1.19001317,2646.1,2645.9,4.55111]
[1729326785592,1.58471102,2646.2,2645.9,8.785551]
[1729326785911,1.19001317,2646.1,2645.9,4.55103]
[1729326787008,1.19001317,2646.1,2645.9,8.33039]
[1729326787367,1.58471102,2646.2,2646.0,3.77928]
[1729326787691,1.19001317,2646.1,2645.9,8.33037]
[1729326787892,0.39469785,2646.2,2646.0,3.77928]
[1729326787893,1.58471102,2646.2,2646.0,3.77928]
[1729326788479,1.58471102,2646.2,2646.1,3.77914]
[1729326788801,0.39469785,2646.2,2646.1,4.59854]
[1729326789209,1.58471102,2646.2,2646.1,4.59854]
[1729326789411,0.39469785,2646.2,2646.1,4.59854]
[1729326790600,0.39469785,2646.2,2646.1,0.8194]
[1729326791122,0.39469785,2646.2,2646.1,4.59854]
[1729326792114,1.58471102,2646.2,2646.1,4.59854]
[1729326792417,0.39469785,2646.2,2646.1,5.5196357]
[1729326794418,1.58471102,2646.2,2646.1,5.5196357]
[1729326796493,1.19001317,2646.2,2646.1,5.5196357]
[1729326798589,1.19001317,2646.2,2646.1,1.7404957]
[1729326799319,1.19001317,2646.2,2646.1,0.8194]
[1729326801089,1.19001317,2646.2,2646.1,4.59854]
[1729326801284,1.19001317,2646.2,2646.1,0.8194]
[1729326802122,1.58604608,2646.3,2646.1,4.59854]
[1729326802123,1.19001317,2646.3,2646.1,4.59854]
[1729326802327,1.19001317,2646.3,2646.2,5.05071227]
[1729326802692,1.19001317,2646.4,2646.2,5.05071227]
[1729326804791,1.58604608,2646.5,2646.3,4.58316]
[1729326804792,1.19001317,2646.5,2646.3,4.58316]
[1729326805016,1.19001317,2646.6,2646.3,4.58316]
[1729326807095,1.33991317,2646.7,2646.4,3.77862]
[1729326807300,1.33991317,2646.7,2646.4,4.28367723]
[1729326810960,0.1499,2646.7,2646.4,4.28367723]
[1729326811120,1.33991317,2646.7,2646.4,3.77862]
[1729326817503,0.1499,2646.7,2646.4,3.77862]
[1729326818147,1.33991317,2646.7,2646.4,3.77862]
[1729326818548,0.1499,2646.7,2646.4,3.77862]
[1729326819045,1.33991317,2646.7,2646.4,3.77862]
[1729326819612,1.33991317,2646.7,2646.3,4.58316]
[1729326819813,1.33991317,2646.7,2646.3,0.8043]
[1729326820012,3.77845,2646.6,2646.1,4.54837]
[1729326820364,3.77845,2646.6,2646.1,5.003207]
[1729326820718,4.96846317,2646.6,2646.1,5.003207]
[1729326822262,4.96846317,2646.6,2646.1,1.224137]
[1729326822478,4.96846317,2646.6,2646.1,4.54844]
[1729326822764,1.73594608,2646.7,2646.5,0.7693]
[1729326822765,1.33991317,2646.7,2646.5,0.7693]
[1729326828029,1.33991317,2646.7,2646.5,4.54783]
[1729326828236,1.33991317,2646.7,2646.5,0.7693]
[1729326828932,1.73828141,2646.7,2646.0,3.7792]
[1729326829184,1.19001317,2646.6,2646.2,3.77896]
[1729326829387,5.91260432,2646.7,2646.2,3.77896]
[1729326829388,1.19001317,2646.5,2646.2,3.77896]
[1729326829562,1.19001317,2646.6,2646.2,3.77896]
[1729326830065,1.19001317,2646.5,2646.1,0.7693]
[1729326830294,3.77895,2646.3,2645.8,4.22982659]
[1729326830453,1.19001317,2646.2,2645.7,4.54893]
[1729326830654,4.96902317,2646.2,2645.7,0.7693]
[1729326830894,1.19001317,2646.2,2645.7,4.54892]
[1729326835197,1.19001317,2646.2,2645.8,3.77956]
[1729326838510,1.19001317,2646.2,2645.7,0.7693]
[1729326838511,4.96904317,2646.2,2645.7,0.7693]